bitfinex/quotes_BTCUSD_20250812
["timestamp","ask_amount","ask_price","bid_price","bid_amount"]
[1755037209597,0.1671689,119640.0,119630.0,0.92590188]
[1755037211527,0.1671689,119640.0,119630.0,1.05806188]
[1755037212366,0.1701689,119640.0,119630.0,0.62098325]
[1755037214161,0.1701689,119640.0,119630.0,0.64605725]
[1755037230030,0.1701689,119640.0,119630.0,0.64307725]
[1755037231306,0.1701689,119640.0,119630.0,0.64612725]
[1755037231942,0.1701689,119640.0,119630.0,0.81330939]
[1755037233340,0.1701689,119640.0,119630.0,0.64307725]
[1755037234457,0.1701689,119640.0,119630.0,0.64612725]
[1755037236062,0.1701689,119640.0,119630.0,0.81330939]
[1755037237140,0.1701689,119640.0,119630.0,0.64612725]
[1755037238029,0.1701689,119640.0,119630.0,0.81330939]
[1755037239410,0.1701689,119640.0,119630.0,0.64612725]
[1755037239906,0.1701689,119640.0,119630.0,0.64307725]
[1755037240587,0.1754689,119640.0,119630.0,0.51191725]
[1755037240812,0.1754689,119640.0,119630.0,0.64291725]
[1755037243027,0.1754689,119640.0,119630.0,0.51191725]
[1755037243244,0.1754689,119640.0,119630.0,0.64291725]
[1755037243925,0.1752099,119640.0,119630.0,0.64291725]
[1755037245861,0.1720199,119640.0,119630.0,0.64291725]
[1755037246521,0.1752099,119640.0,119630.0,0.64291725]
[1755037249027,0.1699099,119640.0,119630.0,0.64291725]
[1755037251406,0.1699099,119640.0,119630.0,0.81009939]
[1755037253981,0.1699099,119640.0,119630.0,0.81314939]
[1755037254650,0.003,119640.0,119630.0,0.81314939]
[1755037255358,0.16867345,119650.0,119640.0,0.15]
[1755037255592,0.17397345,119650.0,119640.0,0.72838402]
[1755037255823,0.17397345,119650.0,119640.0,0.85930402]
[1755037256039,0.17397345,119650.0,119640.0,0.37413681]
[1755037256255,0.17397345,119650.0,119640.0,0.86783758]
[1755037256683,0.73452193,119650.0,119640.0,0.36364325]
[1755037257758,0.75597095,119650.0,119640.0,0.36364325]
[1755037258914,0.26227018,119650.0,119640.0,0.36364325]
[1755037259815,0.19542247,119650.0,119640.0,0.36364325]
[1755037269582,0.6343371,119650.0,119640.0,0.41360325]
[1755037271413,0.64288966,119650.0,119640.0,0.41360325]
[1755037273475,0.20397503,119650.0,119640.0,0.41360325]
[1755037273695,0.64288966,119650.0,119640.0,0.41360325]
[1755037278781,0.68927248,119650.0,119640.0,0.41360325]
[1755037280722,0.69760119,119650.0,119640.0,0.41360325]
[1755037281530,0.19542247,119650.0,119640.0,0.41360325]
[1755037281988,0.68927248,119650.0,119640.0,0.41360325]
[1755037282644,0.19542247,119650.0,119640.0,0.56558325]
[1755037283321,0.68927248,119650.0,119640.0,0.56558325]
[1755037283505,0.19542247,119650.0,119640.0,0.56558325]
[1755037284550,0.19012247,119650.0,119640.0,0.56558325]
[1755037285117,0.19520247,119650.0,119640.0,0.56558325]
[1755037285328,0.19520247,119650.0,119640.0,0.76558325]
[1755037287351,0.68905248,119650.0,119640.0,0.76558325]
[1755037290245,0.68905248,119650.0,119640.0,0.76356325]
[1755037298470,0.19520247,119650.0,119640.0,0.76356325]
[1755037298668,0.68905248,119650.0,119640.0,0.76356325]
[1755037302071,0.19520247,119650.0,119640.0,0.76356325]
[1755037302318,0.68905248,119650.0,119640.0,0.76356325]
[1755037302538,0.68905248,119650.0,119640.0,0.76569325]
[1755037302761,0.19012247,119650.0,119640.0,1.26273326]
[1755037303198,0.17267345,119650.0,119640.0,1.26273326]
[1755037303834,0.17267345,119650.0,119640.0,1.28780626]
[1755037304304,0.17267345,119650.0,119640.0,1.45497443]
[1755037304521,0.17115419,119650.0,119640.0,1.94882444]
[1755037304728,0.17115419,119650.0,119640.0,1.42276219]
[1755037304966,0.004,119650.0,119640.0,1.42276219]
[1755037305178,0.17115419,119650.0,119640.0,1.42276219]
[1755037306467,0.17115419,119650.0,119640.0,1.25559402]
[1755037308447,0.17115419,119650.0,119640.0,1.25524197]
[1755037310102,0.17115419,119650.0,119640.0,1.23232197]
[1755037311003,0.17115419,119650.0,119640.0,0.7936042]
[1755037318118,0.17115419,119650.0,119640.0,0.96077237]
[1755037318336,0.004,119650.0,119640.0,1.11077237]
[1755037319632,0.17549724,119660.0,119640.0,1.11077237]
[1755037319844,0.17549724,119660.0,119650.0,0.21762209]
[1755037320022,0.17549724,119660.0,119650.0,0.21344325]
[1755037320183,0.17549724,119660.0,119650.0,0.21553325]
[1755037320409,0.17549724,119660.0,119650.0,0.24060225]
[1755037321478,0.17649724,119660.0,119650.0,0.24160225]
[1755037322032,0.17649724,119660.0,119650.0,0.44513225]
[1755037322640,0.17649724,119660.0,119650.0,0.44613225]
[1755037323263,0.17649724,119660.0,119650.0,0.61328644]
[1755037323467,0.17649724,119660.0,119650.0,0.44613225]
[1755037324474,0.17649724,119660.0,119650.0,0.61328644]
[1755037324669,0.001,119660.0,119650.0,0.61328644]
[1755037326143,0.00010263,119660.0,119650.0,0.61328644]
[1755037326561,0.00010263,119660.0,119650.0,0.61228644]
[1755037326769,0.1671264,119670.0,119660.0,0.86714023]
[1755037326992,0.1671264,119670.0,119660.0,0.96045348]
[1755037327616,0.1671264,119670.0,119660.0,0.98551948]
[1755037328070,0.16824871,119670.0,119660.0,0.98651948]
[1755037328575,0.16824871,119670.0,119660.0,1.11715948]
[1755037329214,0.16824871,119670.0,119660.0,1.11915948]
[1755037329430,0.00112231,119670.0,119660.0,1.11915948]
[1755037329639,0.00112231,119670.0,119660.0,1.12220948]
[1755037334081,0.00112231,119670.0,119660.0,1.14764687]
[1755037336235,0.00112231,119670.0,119660.0,1.17264687]
[1755037337335,0.00112231,119670.0,119660.0,1.17164687]
[1755037337558,0.00012231,119670.0,119660.0,1.17164687]
[1755037337773,0.00112231,119670.0,119660.0,1.17464687]
[1755037337996,0.00112231,119670.0,119660.0,1.17264687]
[1755037338954,0.00112231,119670.0,119660.0,1.17564687]
[1755037340251,0.00112231,119670.0,119660.0,1.14755687]
[1755037340463,0.17337857,119670.0,119660.0,0.78041664]
[1755037340669,0.17337857,119670.0,119660.0,0.75288925]
[1755037341729,0.17337857,119670.0,119660.0,0.62228925]
[1755037341964,0.17337857,119670.0,119660.0,0.75288925]
[1755037343765,0.17337857,119670.0,119660.0,0.47228925]
[1755037343977,0.17337857,119670.0,119660.0,0.75288925]
[1755037345606,0.17337857,119670.0,119660.0,0.74438925]
[1755037350527,0.17337857,119670.0,119660.0,0.75288925]
[1755037351447,0.17337857,119670.0,119660.0,0.92002948]
[1755037352097,0.17337857,119670.0,119660.0,0.75288925]
[1755037356498,0.17337857,119670.0,119660.0,0.62228925]
[1755037356740,0.17337857,119670.0,119660.0,0.75288925]
[1755037356982,0.17337857,119670.0,119660.0,0.60288925]
[1755037357462,0.17337857,119670.0,119660.0,0.57782325]
[1755037357846,0.61202564,119670.0,119660.0,0.57782325]
[1755037358083,0.17337857,119670.0,119660.0,0.57782325]
[1755037358996,0.17237857,119670.0,119660.0,0.57482325]
[1755037359201,0.17237857,119670.0,119660.0,0.57182325]
[1755037359451,0.17537857,119670.0,119660.0,0.57282325]
[1755037359862,0.17537857,119670.0,119660.0,0.56432325]
[1755037377344,0.17024857,119670.0,119660.0,0.56643325]
[1755037377804,0.17222857,119670.0,119660.0,0.56643325]
[1755037378019,0.17537857,119670.0,119660.0,0.56643325]
[1755037378485,0.17024857,119670.0,119660.0,0.56643325]
[1755037379125,0.17024857,119670.0,119660.0,0.73672348]
[1755037379339,0.00312231,119670.0,119660.0,0.93672348]
[1755037379736,0.17024857,119670.0,119660.0,0.93672348]
[1755037380375,0.17024857,119670.0,119660.0,0.79465025]
[1755037381204,0.17024857,119670.0,119660.0,0.96179048]
[1755037382019,0.17024857,119670.0,119660.0,0.79465025]
[1755037382435,0.17024857,119670.0,119660.0,0.96179048]
[1755037382964,0.00312231,119670.0,119660.0,0.96179048]
[1755037383435,0.00312231,119670.0,119660.0,1.11179048]
[1755037383607,0.00035006,119670.0,119660.0,1.11179048]
[1755037384592,0.17661347,119690.0,119680.0,0.55]
[1755037384825,0.17666227,119690.0,119680.0,0.76532325]
[1755037385839,0.17666227,119690.0,119680.0,0.93243554]
[1755037386089,0.17666227,119690.0,119680.0,0.76532325]
[1755037386292,0.17666227,119690.0,119680.0,0.93542554]
[1755037386495,0.17966227,119690.0,119680.0,0.93642554]
[1755037386642,0.17966227,119690.0,119680.0,0.76931325]
[1755037387315,0.17966227,119690.0,119680.0,0.77781325]
[1755037387899,0.17966227,119690.0,119680.0,0.77482325]
[1755037388355,0.17966227,119690.0,119680.0,0.77582325]
[1755037389201,0.17666227,119690.0,119680.0,0.77482325]
[1755037389613,0.17303227,119690.0,119680.0,0.77582325]
[1755037390458,0.17504227,119690.0,119680.0,0.77582325]
[1755037390672,0.17803227,119690.0,119680.0,0.77582325]
[1755037390876,0.17803227,119690.0,119680.0,0.97622325]
[1755037392832,0.17803227,119690.0,119680.0,0.97418325]
[1755037399030,0.17803227,119690.0,119680.0,1.00128625]
[1755037403081,0.17803227,119690.0,119680.0,0.99278625]
[1755037404531,0.17803227,119690.0,119680.0,1.0009496]
[1755037404736,0.17803227,119690.0,119680.0,0.99278625]
[1755037407382,0.17803227,119690.0,119680.0,1.0009496]
[1755037407717,0.17303227,119690.0,119680.0,1.0009496]
[1755037408104,0.17303227,119690.0,119680.0,0.99278625]
[1755037408278,0.17303227,119690.0,119680.0,1.00128625]
[1755037408495,0.17303227,119690.0,119680.0,1.00427625]
[1755037412444,0.17303227,119690.0,119680.0,1.00128625]
[1755037412630,0.17303227,119690.0,119680.0,1.00954615]
[1755037414538,0.17303227,119690.0,119680.0,1.16271615]
[1755037415095,0.17303227,119690.0,119680.0,1.15954615]
[1755037422159,0.17303227,119690.0,119680.0,1.15128625]
[1755037429253,0.17303227,119690.0,119680.0,1.14278625]
[1755037432720,0.0010488,119690.0,119680.0,1.32156854]
[1755037432930,0.17543973,119700.0,119680.0,1.32156854]
[1755037433149,0.17592786,119700.0,119690.0,0.21718069]
[1755037433360,0.17592786,119700.0,119690.0,0.21495325]
[1755037433820,0.17592786,119700.0,119690.0,0.24001325]
[1755037434463,0.18095786,119700.0,119690.0,0.24001325]
[1755037434674,0.18295786,119700.0,119690.0,0.24101325]
[1755037435332,0.18295786,119700.0,119690.0,0.30878325]
[1755037435542,0.18295786,119700.0,119690.0,0.41400325]
[1755037438736,0.67629015,119700.0,119690.0,0.41400325]
[1755037440629,0.67629015,119700.0,119690.0,0.28372325]
[1755037440836,1.18707146,119700.0,119690.0,0.28372325]
[1755037441085,1.18707146,119700.0,119690.0,0.41400325]
[1755037442814,0.63904503,119700.0,119690.0,0.41400325]
[1755037446966,0.20040688,119700.0,119690.0,0.41400325]
[1755037447186,0.63904503,119700.0,119690.0,0.41400325]
[1755037450565,0.20040688,119700.0,119690.0,0.41400325]
[1755037450774,0.63904503,119700.0,119690.0,0.41400325]
[1755037452450,0.20040688,119700.0,119690.0,0.41400325]
[1755037452655,0.63904503,119700.0,119690.0,0.41400325]
[1755037453280,0.20040688,119700.0,119690.0,0.41400325]
[1755037453487,0.63904503,119700.0,119690.0,0.41400325]
[1755037454625,0.20040688,119700.0,119690.0,0.41400325]
[1755037454827,0.63904503,119700.0,119690.0,0.41400325]
[1755037455890,0.20040688,119700.0,119690.0,0.41400325]
[1755037456111,0.63904503,119700.0,119690.0,0.41400325]
[1755037457088,0.20040688,119700.0,119690.0,0.41400325]
[1755037457298,0.63904503,119700.0,119690.0,0.41400325]
[1755037457937,0.20040688,119700.0,119690.0,0.41400325]
[1755037458145,0.63904503,119700.0,119690.0,0.41400325]
[1755037459772,0.20040688,119700.0,119690.0,0.41400325]
[1755037459953,0.19537688,119700.0,119690.0,0.41605325]
[1755037460424,0.19537688,119700.0,119690.0,0.41929325]
[1755037461094,0.17792786,119700.0,119690.0,0.41929325]
[1755037469451,0.17792786,119700.0,119690.0,0.61929325]
[1755037473155,0.17792786,119700.0,119690.0,0.61605325]
[1755037481568,0.17792786,119700.0,119690.0,0.61917325]
[1755037482117,0.17792786,119700.0,119690.0,0.81957325]
[1755037483879,0.17792786,119700.0,119690.0,0.81645325]
[1755037484728,0.17792786,119700.0,119690.0,0.81957325]
[1755037486250,0.17792786,119700.0,119690.0,0.98667158]
[1755037486478,0.17792786,119700.0,119690.0,0.81957325]
[1755037491793,0.00248813,119700.0,119690.0,1.13667158]
[1755037491999,0.16717596,119710.0,119700.0,0.15]
[1755037492219,0.16717596,119710.0,119700.0,0.36912035]
[1755037492430,0.16717596,119710.0,119700.0,0.36494325]
[1755037494871,0.60558727,119710.0,119700.0,0.36494325]
[1755037495277,0.60558727,119710.0,119700.0,0.37349519]
[1755037495469,0.16717596,119710.0,119700.0,0.37449519]
[1755037496241,0.16817596,119710.0,119700.0,0.37649519]
[1755037497627,0.60658727,119710.0,119700.0,0.37649519]
[1755037498453,0.16817596,119710.0,119700.0,0.37649519]
[1755037499530,0.60658727,119710.0,119700.0,0.37649519]
[1755037500389,0.61178727,119710.0,119700.0,0.37649519]
[1755037500594,0.61178727,119710.0,119700.0,0.36794325]
[1755037500800,0.61178727,119710.0,119700.0,0.36584325]
[1755037501642,0.61178727,119710.0,119700.0,0.23572325]
[1755037501858,0.61178727,119710.0,119700.0,0.36576325]
[1755037505985,0.17337596,119710.0,119700.0,0.36576325]
[1755037508989,0.17337596,119710.0,119700.0,0.21576325]
[1755037513193,0.17337596,119710.0,119700.0,0.21792325]
[1755037513419,0.001,119710.0,119700.0,0.22100325]
[1755037513648,0.17549775,119720.0,119710.0,0.56707042]
[1755037513869,0.1785065,119730.0,119720.0,0.15]
[1755037514100,0.1807688,119730.0,119720.0,0.36693145]
[1755037514350,0.1807688,119730.0,119720.0,0.36484325]
[1755037514579,0.1777088,119730.0,119720.0,0.36484325]
[1755037514791,0.1777088,119730.0,119720.0,0.53497971]
[1755037514792,0.16716481,119730.0,119720.0,0.53497971]
[1755037516105,0.16716481,119730.0,119720.0,0.53597971]
[1755037516540,0.16716481,119730.0,119720.0,0.36892325]
[1755037516997,0.16716481,119730.0,119720.0,0.36584325]
[1755037517217,0.16816481,119730.0,119720.0,0.36784325]
[1755037519170,0.16816481,119730.0,119720.0,0.39289625]
[1755037520063,0.17336481,119730.0,119720.0,0.39289625]
[1755037525985,0.17336481,119730.0,119720.0,0.24289625]
[1755037526212,0.16816481,119730.0,119720.0,0.24289625]
[1755037528032,0.17336481,119730.0,119720.0,0.24289625]
[1755037528252,0.17336481,119730.0,119720.0,0.24281625]
[1755037528482,0.17336481,119730.0,119720.0,0.39065625]
[1755037531688,0.17336481,119730.0,119720.0,0.59309625]
[1755037531929,0.17336481,119730.0,119720.0,0.56592325]
[1755037531930,0.61152266,119730.0,119720.0,0.56592325]
[1755037532161,0.17336481,119730.0,119720.0,0.76592325]
[1755037536270,0.17336481,119730.0,119720.0,0.76804325]
[1755037536472,0.16816481,119730.0,119720.0,0.76804325]
[1755037537217,0.16816481,119730.0,119720.0,0.96804325]
[1755037543344,0.16816481,119730.0,119720.0,0.99309725]
[1755037544390,0.16816481,119730.0,119720.0,0.99616725]
[1755037544816,0.16816481,119730.0,119720.0,1.16322371]
[1755037545021,0.15814654,119730.0,119720.0,0.99616725]
[1755037545158,0.15814654,119730.0,119720.0,1.16322371]
[1755037545766,0.15814654,119730.0,119720.0,0.99616725]
[1755037546431,0.15814654,119730.0,119720.0,0.99309725]
[1755037547597,0.15814654,119730.0,119720.0,1.00159725]
[1755037548559,0.15814654,119730.0,119720.0,1.16865371]
[1755037548745,0.15814654,119730.0,119720.0,1.00159725]
[1755037556573,0.15814654,119730.0,119720.0,1.16865371]
[1755037556811,0.1481284,119730.0,119720.0,1.00466725]
[1755037557381,0.1481284,119730.0,119720.0,1.17172371]
[1755037558011,0.1481284,119730.0,119720.0,1.00466725]
[1755037558153,0.1481284,119730.0,119720.0,1.17172371]
[1755037559395,0.1481284,119730.0,119720.0,1.16865371]
[1755037559630,0.001,119730.0,119720.0,1.17170371]
[1755037559835,0.16804251,119730.0,119720.0,1.17170371]
[1755037560035,0.001,119730.0,119720.0,1.17170371]
[1755037560240,0.16804251,119730.0,119720.0,1.17170371]
[1755037562818,0.16804251,119730.0,119720.0,0.86959725]
[1755037562980,0.17319251,119730.0,119720.0,0.99290725]
[1755037566808,0.16317433,119730.0,119720.0,0.99290725]
[1755037568158,0.16317433,119730.0,119720.0,1.00140725]
[1755037571869,0.15794433,119730.0,119720.0,0.59923725]
[1755037572087,0.15794433,119730.0,119720.0,0.94923725]
[1755037573212,0.15794433,119730.0,119720.0,0.95136725]
[1755037575951,0.15489433,119730.0,119720.0,0.95136725]
[1755037577329,0.15489433,119730.0,119720.0,0.94286725]
[1755037577702,0.15279433,119730.0,119720.0,1.10992371]
[1755037580150,0.15279433,119730.0,119720.0,1.12147371]
[1755037581315,0.15279433,119730.0,119720.0,1.32147371]
[1755037581508,0.1670934,119740.0,119720.0,1.32147371]
[1755037581739,0.17850879,119750.0,119730.0,0.93350182]
[1755037581960,0.16702856,119740.0,119730.0,0.71704251]
[1755037582185,0.17850879,119750.0,119730.0,0.93450576]
[1755037582383,0.17850879,119750.0,119740.0,0.23733325]
[1755037582625,0.17850879,119750.0,119740.0,0.40649181]
[1755037583522,0.17545879,119750.0,119740.0,0.40649181]
[1755037583903,0.17849456,119760.0,119750.0,0.55]
[1755037584105,0.17849456,119760.0,119750.0,0.76228325]
[1755037584106,0.18059456,119760.0,119750.0,0.76228325]
[1755037584747,0.18059456,119760.0,119750.0,0.78733225]
[1755037584901,0.17544456,119760.0,119750.0,0.78946225]
[1755037585080,0.17544456,119760.0,119750.0,0.79779341]
[1755037585287,0.18059456,119760.0,119750.0,0.79779341]
[1755037586143,0.18259456,119760.0,119750.0,0.79779341]
[1755037586361,0.17744456,119760.0,119750.0,0.80629341]
[1755037586787,0.17954456,119760.0,119750.0,0.80629341]
[1755037587083,0.18259456,119760.0,119750.0,0.80629341]
[1755037587733,0.18059456,119760.0,119750.0,0.80629341]
[1755037588356,0.18059456,119760.0,119750.0,0.80516341]
[1755037592610,0.18059456,119760.0,119750.0,0.80732341]
[1755037599025,0.17544456,119760.0,119750.0,0.80732341]
[1755037604300,0.17744456,119760.0,119750.0,0.80732341]
[1755037604509,0.18055456,119760.0,119750.0,0.80732341]
[1755037604827,0.17744456,119760.0,119750.0,0.80732341]
[1755037605640,0.18055456,119760.0,119750.0,0.80732341]
[1755037606622,0.18055456,119760.0,119750.0,0.79882341]
[1755037608703,0.17544456,119760.0,119750.0,0.80732341]
[1755037609106,0.17544456,119760.0,119750.0,0.80882341]
[1755037609346,0.17544456,119760.0,119750.0,0.97583802]
[1755037610362,0.17544456,119760.0,119750.0,0.97905802]
[1755037610574,0.16698672,119770.0,119760.0,0.31700066]
[1755037610783,0.16710897,119770.0,119760.0,0.53124391]
[1755037611428,0.16710897,119770.0,119760.0,0.55628891]
[1755037612583,0.16710897,119770.0,119760.0,0.55728891]
[1755037613270,0.16710897,119770.0,119760.0,0.55828891]
[1755037613914,0.00012225,119770.0,119760.0,0.56150891]
[1755037615245,0.16710897,119770.0,119760.0,0.56150891]
[1755037615452,0.00012225,119770.0,119760.0,0.55828891]
[1755037615668,0.16710897,119770.0,119760.0,0.55828891]
[1755037616469,0.16710897,119770.0,119760.0,0.75852891]
[1755037622023,0.16710897,119770.0,119760.0,0.59152825]
[1755037623716,0.16710897,119770.0,119760.0,0.75852891]
[1755037624376,0.16710897,119770.0,119760.0,0.59152825]
[1755037630525,0.16710897,119770.0,119760.0,0.60002825]
[1755037639386,0.15709449,119770.0,119760.0,0.60002825]
[1755037641192,0.15709449,119770.0,119760.0,0.76702891]
[1755037643188,0.15709449,119770.0,119760.0,0.60002825]
[1755037643933,0.15915449,119770.0,119760.0,0.60002825]
[1755037644144,0.16213449,119770.0,119760.0,0.60002825]
[1755037644853,0.16213449,119770.0,119760.0,0.76702891]
[1755037645058,0.16213449,119770.0,119760.0,0.60002825]
[1755037648923,0.16213449,119770.0,119760.0,0.76702891]
[1755037649263,0.15212001,119770.0,119760.0,0.60002825]
[1755037649820,0.15212001,119770.0,119760.0,0.76702891]
[1755037650686,0.14914001,119770.0,119760.0,0.76702891]
[1755037653433,0.14914001,119770.0,119760.0,0.60002825]
[1755037653665,0.64479366,119770.0,119760.0,0.66850825]
[1755037653882,0.64479366,119770.0,119760.0,0.79758825]
[1755037654972,0.64479366,119770.0,119760.0,0.66850825]
[1755037655501,0.64479366,119770.0,119760.0,0.82254325]
[1755037656452,0.64479366,119770.0,119760.0,0.82154325]
[1755037656678,0.64479366,119770.0,119760.0,0.82254325]
[1755037657612,0.64479366,119770.0,119760.0,0.82154325]
[1755037663655,0.64479366,119770.0,119760.0,0.69246325]
[1755037663871,0.64479366,119770.0,119760.0,0.82150325]
[1755037665395,0.64479366,119770.0,119760.0,0.81300325]
[1755037668388,0.64479366,119770.0,119760.0,0.80732847]
[1755037669456,0.64479366,119770.0,119760.0,0.67828847]
[1755037669677,0.64479366,119770.0,119760.0,0.80732847]
[1755037669827,0.64479366,119770.0,119760.0,0.67828847]
[1755037670050,0.64479366,119770.0,119760.0,0.80728847]
[1755037670468,0.64479366,119770.0,119760.0,0.81578847]
[1755037676253,0.64479366,119770.0,119760.0,0.80956545]
[1755037676669,0.15210001,119770.0,119760.0,0.80956545]
[1755037676871,0.64479366,119770.0,119760.0,0.80956545]
[1755037678531,0.64479366,119770.0,119760.0,0.80952545]
[1755037681848,0.64479366,119770.0,119760.0,0.68056545]
[1755037682051,0.64479366,119770.0,119760.0,0.80952545]
[1755037682853,0.64479366,119770.0,119760.0,0.68056545]
[1755037683044,0.64479366,119770.0,119760.0,0.80948545]
[1755037686908,0.64479366,119770.0,119760.0,0.80938865]
[1755037689096,0.64479366,119770.0,119760.0,0.68046865]
[1755037689315,1.15493633,119770.0,119760.0,0.48046865]
[1755037689520,1.15493633,119770.0,119760.0,0.60934865]
[1755037689720,1.15493633,119770.0,119760.0,0.60084865]
[1755037690143,1.16316003,119770.0,119760.0,0.59984865]
[1755037690664,0.67046638,119770.0,119760.0,0.59984865]
[1755037691294,0.67246638,119770.0,119760.0,0.59984865]
[1755037693291,0.67246638,119770.0,119760.0,0.47096865]
[1755037693491,0.67246638,119770.0,119760.0,0.59984865]
[1755037698773,0.67246638,119770.0,119760.0,0.59980865]
[1755037699399,0.17977273,119770.0,119760.0,0.59980865]
[1755037699724,0.67246638,119770.0,119760.0,0.59980865]
[1755037700606,0.17977273,119770.0,119760.0,0.59980865]
[1755037702072,0.67263262,119770.0,119760.0,0.59980865]
[1755037702514,0.17977273,119770.0,119760.0,0.59980865]
[1755037702719,0.67263262,119770.0,119760.0,0.59980865]
[1755037705455,0.67263262,119770.0,119760.0,0.59592865]
[1755037708321,0.17977273,119770.0,119760.0,0.59592865]
[1755037708530,0.67263262,119770.0,119760.0,0.59592865]
[1755037709785,0.17977273,119770.0,119760.0,0.59592865]
[1755037709991,0.67263262,119770.0,119760.0,0.59592865]
[1755037711501,0.67263262,119770.0,119760.0,0.46708865]
[1755037711879,0.67263262,119770.0,119760.0,0.59790865]
[1755037714098,0.17977273,119770.0,119760.0,0.59790865]
[1755037714314,0.67263262,119770.0,119760.0,0.59790865]
[1755037716477,0.67263262,119770.0,119760.0,0.46910865]
[1755037716703,0.67263262,119770.0,119760.0,0.59786865]
[1755037717726,0.17977273,119770.0,119760.0,0.59786865]
[1755037717936,0.67263262,119770.0,119760.0,0.59786865]
[1755037718159,0.17977273,119770.0,119760.0,0.59786865]
[1755037718436,0.67263262,119770.0,119760.0,0.59786865]
[1755037720675,0.67263262,119770.0,119760.0,0.46910865]
[1755037720892,0.67263262,119770.0,119760.0,0.59580865]
[1755037721332,0.17977273,119770.0,119760.0,0.59580865]
[1755037721562,0.67263262,119770.0,119760.0,0.59580865]
[1755037723897,0.67263262,119770.0,119760.0,0.59566648]
[1755037724465,0.17977273,119770.0,119760.0,0.59566648]
[1755037724691,0.67263262,119770.0,119760.0,0.59566648]
[1755037725460,0.14908001,119770.0,119760.0,0.60079648]
[1755037725684,0.14908001,119770.0,119760.0,0.80079648]
[1755037727092,0.14908001,119770.0,119760.0,0.80179648]
[1755037727529,0.14908001,119770.0,119760.0,0.80079648]
[1755037727747,0.14708001,119770.0,119760.0,0.80079648]
[1755037727970,0.14708001,119770.0,119760.0,0.80179648]
[1755037730809,0.14708001,119770.0,119760.0,0.81029648]
[1755037732003,0.14708001,119770.0,119760.0,0.80929648]
[1755037732207,0.14708001,119770.0,119760.0,0.81029648]
[1755037732622,0.14708001,119770.0,119760.0,0.81129648]
[1755037733186,0.14708001,119770.0,119760.0,0.8051537]
[1755037733694,0.14708001,119770.0,119760.0,0.8041537]
[1755037734118,0.14708001,119770.0,119760.0,0.8051537]
[1755037740515,0.6399399,119770.0,119760.0,0.8020437]
[1755037742179,0.6399399,119770.0,119760.0,0.6733237]
[1755037742386,0.6451999,119770.0,119760.0,0.7998637]
[1755037742805,0.15234001,119770.0,119760.0,0.7998637]
[1755037743002,0.6451999,119770.0,119760.0,0.7998637]
[1755037745311,0.6451999,119770.0,119760.0,0.6713037]
[1755037745518,0.6451999,119770.0,119760.0,0.7913637]
[1755037751138,0.15234001,119770.0,119760.0,0.7913637]
[1755037751356,0.6451999,119770.0,119760.0,0.7913637]
[1755037751579,0.6451999,119770.0,119760.0,0.4628037]
[1755037751792,0.6451999,119770.0,119760.0,0.5913237]
[1755037752934,0.64155962,119770.0,119760.0,0.5903237]
[1755037753156,0.14869973,119770.0,119760.0,0.5893237]
[1755037753365,0.14869973,119770.0,119760.0,0.5903237]
[1755037753569,0.64155962,119770.0,119760.0,0.5903237]
[1755037764396,0.64155962,119770.0,119760.0,0.4618037]
[1755037764606,0.14869973,119770.0,119760.0,0.5902837]
[1755037764810,0.64155962,119770.0,119760.0,0.5902837]
[1755037765466,0.64155962,119770.0,119760.0,0.4618037]
[1755037765467,0.65900864,119770.0,119760.0,0.4618037]
[1755037765697,0.65900864,119770.0,119760.0,0.5902837]
[1755037765698,1.15186853,119770.0,119760.0,0.5902837]
[1755037765911,0.65900864,119770.0,119760.0,0.5902837]
[1755037766127,1.15386853,119770.0,119760.0,0.5892837]
[1755037766542,0.16700066,119760.0,119750.0,0.35178]
[1755037766743,1.25466389,119760.0,119750.0,0.43450325]
[1755037766946,1.17542946,119760.0,119750.0,0.56298325]
[1755037767377,1.20048146,119760.0,119750.0,0.56298325]
[1755037767792,1.20048146,119760.0,119750.0,0.56398325]
[1755037770000,1.22591233,119760.0,119750.0,0.56398325]
[1755037775991,1.22591233,119760.0,119750.0,0.41398325]
[1755037776566,1.30839676,119760.0,119750.0,0.41398325]
[1755037776999,1.30839676,119760.0,119730.0,0.3585]
[1755037777000,0.16702856,119740.0,119730.0,0.3585]
[1755037777219,0.66190845,119740.0,119730.0,0.76994325]
[1755037777683,0.66485845,119740.0,119730.0,0.76994325]
[1755037778269,0.66485845,119740.0,119730.0,0.77094325]
[1755037779639,0.17199856,119740.0,119730.0,0.77094325]
[1755037779804,0.66485845,119740.0,119730.0,0.77094325]
[1755037780631,0.17199856,119740.0,119730.0,0.77094325]
[1755037780840,0.66485845,119740.0,119730.0,0.77094325]
[1755037781983,0.66485845,119740.0,119730.0,0.64250325]
[1755037782119,0.67311379,119740.0,119730.0,0.77094325]
[1755037783592,0.67311379,119740.0,119730.0,0.76994325]
[1755037784029,0.67411379,119740.0,119730.0,0.76994325]
[1755037784284,0.67611379,119740.0,119730.0,0.76994325]
[1755037789481,0.17204856,119740.0,119730.0,0.77209325]
[1755037789699,0.66288845,119740.0,119730.0,0.77209325]
[1755037791028,0.17002856,119740.0,119730.0,0.77209325]
[1755037791264,0.66288845,119740.0,119730.0,0.77209325]
[1755037792517,0.66288845,119740.0,119730.0,0.76359325]
[1755037797200,0.66583845,119740.0,119730.0,0.76359325]
[1755037797670,0.66785845,119740.0,119730.0,0.76359325]
[1755037800888,0.66785845,119740.0,119730.0,0.43300325]
[1755037800889,0.68530747,119740.0,119730.0,0.43300325]
[1755037801126,0.16705646,119720.0,119710.0,0.55882]
[1755037801344,0.66207635,119720.0,119710.0,0.70836803]
[1755037801552,0.66522635,119720.0,119710.0,0.70836803]
[1755037801759,0.17236646,119720.0,119710.0,0.71051803]
[1755037802000,0.66522635,119720.0,119710.0,0.71051803]
[1755037802210,0.66522635,119720.0,119710.0,0.70201803]
[1755037802440,0.66527506,119720.0,119710.0,0.70301803]
[1755037802648,0.17241517,119720.0,119710.0,0.70301803]
[1755037803067,0.61079835,119720.0,119710.0,0.70301803]
[1755037803540,0.60548835,119720.0,119710.0,0.70401803]
[1755037803770,0.60548835,119720.0,119710.0,0.70724803]
[1755037803771,0.16710517,119720.0,119710.0,0.70724803]
[1755037806506,0.16710517,119720.0,119710.0,0.90724803]
[1755037814473,0.16710517,119720.0,119710.0,0.90401803]
[1755037822694,0.6602001,119720.0,119710.0,0.90401803]
[1755037823902,0.16710517,119720.0,119710.0,0.90401803]
[1755037825568,0.6602001,119720.0,119710.0,0.90401803]
[1755037827808,0.6602001,119720.0,119710.0,0.91251803]
[1755037828424,0.16710517,119720.0,119710.0,0.91251803]
[1755037836111,0.16926517,119720.0,119710.0,0.91251803]
[1755037836314,0.17242517,119720.0,119710.0,0.91251803]
[1755037838736,0.6655201,119720.0,119710.0,0.91036803]
[1755037841860,0.6655201,119720.0,119710.0,0.90186803]
[1755037845034,0.17242517,119720.0,119710.0,0.90186803]
[1755037845254,0.6655201,119720.0,119710.0,0.90186803]
[1755037845647,0.17242517,119720.0,119710.0,0.90391803]
[1755037845850,0.16710517,119720.0,119710.0,0.91241803]
[1755037846074,0.16710517,119720.0,119710.0,0.91537803]
[1755037846519,0.16710517,119720.0,119710.0,0.94043403]